[Event "Titled Tuesday Blitz April 4 Late 2023"]
[White "Manu_ChessExcelsior"]
[Black "Kukula, Pawel"]
[BlackFideId "1115081"]
[WhiteElo "2141"]
[BlackElo "2012"]
[Result "1-0"]
[Round "04"]
[TimeControl "180+2"]
[Date "2023.04.04"]
[WhiteClock "0:00:30"]
[BlackClock "0:00:37"]

1. e4 {[%clk 0:03:00]}  c5 {[%clk 0:02:59]} 2. g3 {[%clk 0:03:00]}  g6 {[%clk 0:02:58]} 3. Bg2 {[%clk 0:03:01]}  Bg7 {[%clk 0:02:59]} 4. d3 {[%clk 0:03:02]}  d6 {[%clk 0:02:59]} 5. f4 {[%clk 0:03:02]}  e6 {[%clk 0:02:59]} 6. Nf3 {[%clk 0:03:03]}  Ne7 {[%clk 0:03:00]} 7. O-O {[%clk 0:03:04]}  Nbc6 {[%clk 0:02:59]} 8. c3 {[%clk 0:03:05]}  Rb8 {[%clk 0:02:59]} 9. Be3 {[%clk 0:03:05]}  b5 {[%clk 0:02:59]} 10. Bf2 {[%clk 0:03:06]}  b4 {[%clk 0:03:00]} 11. d4 {[%clk 0:03:03]}  bxc3 {[%clk 0:02:57]} 12. bxc3 {[%clk 0:03:04]}  cxd4 {[%clk 0:02:57]} 13. cxd4 {[%clk 0:03:04]}  d5 {[%clk 0:02:57]} 14. e5 {[%clk 0:02:59]}  O-O {[%clk 0:02:53]} 15. Re1 {[%clk 0:02:59]}  h5 {[%clk 0:02:44]} 16. h3 {[%clk 0:02:58]}  f6 {[%clk 0:02:39]} 17. exf6 {[%clk 0:02:56]}  Bxf6 {[%clk 0:02:39]} 18. Ne5 {[%clk 0:02:57]}  Nxe5 {[%clk 0:02:37]} 19. dxe5 {[%clk 0:02:46]}  Bg7 {[%clk 0:02:37]} 20. Bxa7 {[%clk 0:02:45]}  Rb2 {[%clk 0:02:34]} 21. Bd4 {[%clk 0:02:43]}  Rb8 {[%clk 0:02:32]} 22. Nd2 {[%clk 0:02:38]}  Nf5 {[%clk 0:02:32]} 23. Bf2 {[%clk 0:02:37]}  Bd7 {[%clk 0:02:19]} 24. Nb3 {[%clk 0:02:36]}  Ba4 {[%clk 0:02:18]} 25. Rb1 {[%clk 0:02:30]}  Bxb3 {[%clk 0:02:17]} 26. Rxb3 {[%clk 0:02:26]}  Qa5 {[%clk 0:02:15]} 27. Qb1 {[%clk 0:02:16]}  Ra8 {[%clk 0:02:07]} 28. Re2 {[%clk 0:02:11]}  Rfc8 {[%clk 0:02:01]} 29. Reb2 {[%clk 0:02:11]}  Kh7 {[%clk 0:01:49]} 30. Rb7 {[%clk 0:02:04]}  Qa3 {[%clk 0:01:40]} 31. g4 {[%clk 0:01:42]}  hxg4 {[%clk 0:01:36]} 32. hxg4 {[%clk 0:01:42]}  Nh6 {[%clk 0:01:36]} 33. f5 {[%clk 0:01:24]}  exf5 {[%clk 0:01:22]} 34. gxf5 {[%clk 0:01:08]}  Nxf5 {[%clk 0:01:22]} 35. Bxd5 {[%clk 0:01:05]}  Ra4 {[%clk 0:01:17]} 36. R2b3 {[%clk 0:00:47]}  Rg4+ {[%clk 0:00:52]} 37. Kh2 {[%clk 0:00:35]}  Qe7 {[%clk 0:00:52]} 38. Rh3+ {[%clk 0:00:32]}  Nh6 {[%clk 0:00:37]} 39. Rxe7 {[%clk 0:00:30]} 1-0


[Site "https://www.chess.com"]

[Event "Titled Tuesday Blitz April 4 Late 2023"]
[White "Steenbekkers, Franck"]
[Black "Golubev, Mikhail"]
[WhiteFideId "1004220"]
[BlackFideId "14100983"]
[WhiteElo "1951"]
[BlackElo "2374"]
[Result "0-1"]
[Round "04"]
[TimeControl "180+2"]
[Date "2023.04.04"]
[WhiteClock "0:01:24"]
[BlackClock "0:00:35"]

1. e4 {[%clk 0:03:00]}  c5 {[%clk 0:02:57]} 2. Nf3 {[%clk 0:02:59]}  d6 {[%clk 0:02:57]} 3. d4 {[%clk 0:02:58]}  cxd4 {[%clk 0:02:57]} 4. Nxd4 {[%clk 0:02:59]}  Nf6 {[%clk 0:02:57]} 5. Nc3 {[%clk 0:03:00]}  a6 {[%clk 0:02:58]} 6. Be2 {[%clk 0:02:56]}  g6 {[%clk 0:02:54]} 7. Bg5 {[%clk 0:02:52]}  Bg7 {[%clk 0:02:54]} 8. O-O {[%clk 0:02:51]}  O-O {[%clk 0:02:51]} 9. Qd2 {[%clk 0:02:50]}  Nc6 {[%clk 0:02:51]} 10. Nxc6 {[%clk 0:02:49]}  bxc6 {[%clk 0:02:51]} 11. Bh6 {[%clk 0:02:50]}  Bxh6 {[%clk 0:02:43]} 12. Qxh6 {[%clk 0:02:48]}  Rb8 {[%clk 0:02:41]} 13. Rab1 {[%clk 0:02:47]}  Qa5 {[%clk 0:02:40]} 14. Bd3 {[%clk 0:02:45]}  Be6 {[%clk 0:02:31]} 15. f4 {[%clk 0:02:43]}  Rxb2 {[%clk 0:01:58]} 16. Rxb2 {[%clk 0:02:30]}  Qxc3 {[%clk 0:01:58]} 17. Rb7 {[%clk 0:02:30]}  Nxe4 {[%clk 0:01:42]} 18. h3 {[%clk 0:01:56]}  Nc5 {[%clk 0:01:11]} 19. Rxe7 {[%clk 0:01:49]}  Nxd3 {[%clk 0:00:45]} 20. cxd3 {[%clk 0:01:48]}  Qxd3 {[%clk 0:00:43]} 21. Rc1 {[%clk 0:01:27]}  Qe3+ {[%clk 0:00:38]} 22. Kh2 {[%clk 0:01:25]}  Qxc1 {[%clk 0:00:38]} 23. f5 {[%clk 0:01:24]}  Qxh6 {[%clk 0:00:35]} 0-1


[Site "https://www.chess.com"]

[Event "Titled Tuesday Blitz April 4 Late 2023"]
[White "tandercat"]
[Black "WindWhistler11"]
[WhiteElo "1937"]
[BlackElo "2453"]
[Result "0-1"]
[Round "04"]
[TimeControl "180+2"]
[Date "2023.04.04"]
[WhiteClock "0:00:05"]
[BlackClock "0:00:19"]

1. d4 {[%clk 0:03:00]}  Nf6 {[%clk 0:02:59]} 2. c4 {[%clk 0:03:00]}  e6 {[%clk 0:02:59]} 3. Nc3 {[%clk 0:03:00]}  c5 {[%clk 0:02:59]} 4. d5 {[%clk 0:03:00]}  exd5 {[%clk 0:02:59]} 5. cxd5 {[%clk 0:02:59]}  Bd6 {[%clk 0:03:00]} 6. e4 {[%clk 0:02:57]}  O-O {[%clk 0:02:59]} 7. Bd3 {[%clk 0:02:48]}  Re8 {[%clk 0:02:58]} 8. Nge2 {[%clk 0:02:42]}  a6 {[%clk 0:02:55]} 9. a4 {[%clk 0:02:40]}  Bc7 {[%clk 0:02:52]} 10. O-O {[%clk 0:02:39]}  d6 {[%clk 0:02:51]} 11. h3 {[%clk 0:02:38]}  Nbd7 {[%clk 0:02:50]} 12. f4 {[%clk 0:02:38]}  Rb8 {[%clk 0:02:50]} 13. Ng3 {[%clk 0:02:31]}  Nf8 {[%clk 0:02:41]} 14. Bd2 {[%clk 0:02:28]}  Bd7 {[%clk 0:02:36]} 15. Nge2 {[%clk 0:02:13]}  b5 {[%clk 0:02:32]} 16. axb5 {[%clk 0:02:11]}  axb5 {[%clk 0:02:33]} 17. Be1 {[%clk 0:02:04]}  c4 {[%clk 0:02:29]} 18. Bc2 {[%clk 0:02:01]}  b4 {[%clk 0:02:29]} 19. Na4 {[%clk 0:01:54]}  Nxe4 {[%clk 0:02:23]} 20. Bxe4 {[%clk 0:01:36]}  Rxe4 {[%clk 0:02:20]} 21. Ng3 {[%clk 0:01:35]}  Re8 {[%clk 0:02:10]} 22. f5 {[%clk 0:01:32]}  Qf6 {[%clk 0:01:45]} 23. Nh5 {[%clk 0:01:22]}  Qe5 {[%clk 0:01:38]} 24. f6 {[%clk 0:01:09]}  g6 {[%clk 0:01:36]} 25. Ng7 {[%clk 0:01:03]}  Rec8 {[%clk 0:01:19]} 26. Bh4 {[%clk 0:00:56]}  Bxa4 {[%clk 0:01:09]} 27. Rxa4 {[%clk 0:00:51]}  Qxb2 {[%clk 0:00:57]} 28. Rf2 {[%clk 0:00:39]}  Bb6 {[%clk 0:00:52]} 29. Qf3 {[%clk 0:00:11]}  Bxf2+ {[%clk 0:00:48]} 30. Bxf2 {[%clk 0:00:11]}  c3 {[%clk 0:00:40]} 31. Ra7 {[%clk 0:00:09]}  c2 {[%clk 0:00:35]} 32. Ne6 {[%clk 0:00:06]}  c1=Q+ {[%clk 0:00:32]} 33. Kh2 {[%clk 0:00:05]}  Rc2 {[%clk 0:00:19]} 0-1


[Site "https://www.chess.com"]

[Event "Titled Tuesday Blitz April 4 Late 2023"]
[White "Porat, Tori"]
[Black "ArchibaldCerveza29"]
[WhiteFideId "30982626"]
[WhiteElo "1752"]
[BlackElo "2441"]
[Result "1-0"]
[Round "04"]
[TimeControl "180+2"]
[Date "2023.04.04"]
[WhiteClock "0:00:07"]
[BlackClock "0:00:07"]

1. d4 {[%clk 0:03:00]}  d5 {[%clk 0:02:59]} 2. c4 {[%clk 0:03:00]}  e6 {[%clk 0:02:59]} 3. Nc3 {[%clk 0:02:59]}  Nf6 {[%clk 0:03:00]} 4. Nf3 {[%clk 0:02:55]}  c6 {[%clk 0:02:56]} 5. Bg5 {[%clk 0:02:53]}  Nbd7 {[%clk 0:02:47]} 6. e3 {[%clk 0:02:53]}  Qa5 {[%clk 0:02:43]} 7. cxd5 {[%clk 0:02:44]}  Nxd5 {[%clk 0:01:58]} 8. Rc1 {[%clk 0:02:21]}  Bb4 {[%clk 0:01:53]} 9. Qb3 {[%clk 0:02:19]}  c5 {[%clk 0:01:43]} 10. a3 {[%clk 0:01:55]}  Bxc3+ {[%clk 0:01:42]} 11. bxc3 {[%clk 0:01:56]}  O-O {[%clk 0:01:42]} 12. Bd3 {[%clk 0:01:51]}  b6 {[%clk 0:01:41]} 13. O-O {[%clk 0:01:50]}  Bb7 {[%clk 0:01:37]} 14. c4 {[%clk 0:01:49]}  N5f6 {[%clk 0:01:36]} 15. Be2 {[%clk 0:01:45]}  Ne4 {[%clk 0:01:30]} 16. Bf4 {[%clk 0:01:40]}  Rfd8 {[%clk 0:01:28]} 17. d5 {[%clk 0:01:39]}  Nf8 {[%clk 0:01:20]} 18. Rfd1 {[%clk 0:01:36]}  Rac8 {[%clk 0:01:00]} 19. Ne5 {[%clk 0:00:58]}  exd5 {[%clk 0:00:39]} 20. cxd5 {[%clk 0:00:57]}  Nd2 {[%clk 0:00:35]} 21. Qa2 {[%clk 0:00:41]}  Rxd5 {[%clk 0:00:35]} 22. e4 {[%clk 0:00:35]}  Nxe4 {[%clk 0:00:19]} 23. Rxd5 {[%clk 0:00:34]}  Nc3 {[%clk 0:00:19]} 24. Rxc3 {[%clk 0:00:18]}  Qxc3 {[%clk 0:00:20]} 25. Rd1 {[%clk 0:00:18]}  Ne6 {[%clk 0:00:20]} 26. Bf3 {[%clk 0:00:14]}  Bxf3 {[%clk 0:00:18]} 27. Nxf3 {[%clk 0:00:13]}  Nxf4 {[%clk 0:00:17]} 28. h3 {[%clk 0:00:10]}  Qf6 {[%clk 0:00:16]} 29. Rd7 {[%clk 0:00:08]}  a6 {[%clk 0:00:14]} 30. Qd2 {[%clk 0:00:08]}  Ne6 {[%clk 0:00:07]} 31. Rd6 {[%clk 0:00:07]} 1-0


[Site "https://www.chess.com"]

[Event "Titled Tuesday Blitz April 4 Late 2023"]
[White "Diaz Perez, Michel Alejandro"]
[Black "Kujawski, Adam"]
[WhiteFideId "3517179"]
[BlackFideId "1100920"]
[WhiteElo "2334"]
[BlackElo "2054"]
[Result "1-0"]
[Round "04"]
[TimeControl "180+2"]
[Date "2023.04.04"]
[WhiteClock "0:01:11"]
[BlackClock "0:00:03"]

1. Nf3 {[%clk 0:03:00]}  d5 {[%clk 0:02:33]} 2. c4 {[%clk 0:02:58]}  d4 {[%clk 0:02:32]} 3. e3 {[%clk 0:02:58]}  Nc6 {[%clk 0:02:32]} 4. b4 {[%clk 0:02:58]}  dxe3 {[%clk 0:02:31]} 5. fxe3 {[%clk 0:02:58]}  Nxb4 {[%clk 0:02:31]} 6. d4 {[%clk 0:02:58]}  e5 {[%clk 0:02:31]} 7. Nxe5 {[%clk 0:02:55]}  Bf5 {[%clk 0:02:13]} 8. Na3 {[%clk 0:02:48]}  Nf6 {[%clk 0:01:54]} 9. Be2 {[%clk 0:02:41]}  Ne4 {[%clk 0:01:32]} 10. O-O {[%clk 0:02:26]}  Nc3 {[%clk 0:01:32]} 11. Qd2 {[%clk 0:02:17]}  Nxe2+ {[%clk 0:01:26]} 12. Qxe2 {[%clk 0:02:18]}  Bg6 {[%clk 0:01:11]} 13. Qf3 {[%clk 0:02:15]}  f6 {[%clk 0:01:05]} 14. Nxg6 {[%clk 0:02:09]}  hxg6 {[%clk 0:01:05]} 15. Qxb7 {[%clk 0:02:07]}  Bd6 {[%clk 0:01:01]} 16. h3 {[%clk 0:01:55]}  Rb8 {[%clk 0:00:46]} 17. Qe4+ {[%clk 0:01:54]}  Kf7 {[%clk 0:00:44]} 18. Nb5 {[%clk 0:01:55]}  Re8 {[%clk 0:00:23]} 19. Qf3 {[%clk 0:01:42]}  a6 {[%clk 0:00:11]} 20. Nxd6+ {[%clk 0:01:40]}  cxd6 {[%clk 0:00:11]} 21. Bd2 {[%clk 0:01:39]}  Qd7 {[%clk 0:00:07]} 22. Rab1 {[%clk 0:01:36]}  Nxa2 {[%clk 0:00:06]} 23. e4 {[%clk 0:01:31]}  a5 {[%clk 0:00:05]} 24. Bxa5 {[%clk 0:01:25]}  Qa4 {[%clk 0:00:06]} 25. Bc7 {[%clk 0:01:23]}  Rxb1 {[%clk 0:00:05]} 26. Rxb1 {[%clk 0:01:24]}  Qc2 {[%clk 0:00:04]} 27. Rb7 {[%clk 0:01:21]}  Nc3 {[%clk 0:00:02]} 28. Ba5+ {[%clk 0:01:17]}  Kg8 {[%clk 0:00:02]} 29. Bxc3 {[%clk 0:01:17]}  Rxe4 {[%clk 0:00:01]} 30. Kh2 {[%clk 0:01:12]}  Kh7 {[%clk 0:00:02]} 31. d5 {[%clk 0:01:11]}  Re2 {[%clk 0:00:03]} 32. Bxf6 {[%clk 0:01:11]} 1-0


[Site "https://www.chess.com"]

[Event "Titled Tuesday Blitz April 4 Late 2023"]
[White "Ai, Evan"]
[Black "Annaberdiyev, Meylis"]
[WhiteFideId "2094770"]
[BlackFideId "14000563"]
[WhiteElo "1963"]
[BlackElo "2416"]
[Result "0-1"]
[Round "04"]
[TimeControl "180+2"]
[Date "2023.04.04"]
[WhiteClock "0:00:12"]
[BlackClock "0:00:58"]

1. e4 {[%clk 0:03:00]}  c5 {[%clk 0:02:59]} 2. Nf3 {[%clk 0:03:01]}  e6 {[%clk 0:02:59]} 3. d4 {[%clk 0:03:01]}  cxd4 {[%clk 0:03:00]} 4. Nxd4 {[%clk 0:03:02]}  Nc6 {[%clk 0:03:01]} 5. Nc3 {[%clk 0:03:01]}  Qc7 {[%clk 0:03:01]} 6. Be3 {[%clk 0:03:01]}  a6 {[%clk 0:03:01]} 7. Be2 {[%clk 0:03:01]}  Nf6 {[%clk 0:02:58]} 8. O-O {[%clk 0:02:55]}  b5 {[%clk 0:02:58]} 9. f3 {[%clk 0:02:45]}  Bb7 {[%clk 0:02:56]} 10. a3 {[%clk 0:02:40]}  Bd6 {[%clk 0:02:55]} 11. f4 {[%clk 0:02:36]}  Nxd4 {[%clk 0:02:50]} 12. Bxd4 {[%clk 0:02:36]}  Bxf4 {[%clk 0:02:43]} 13. h3 {[%clk 0:01:38]}  Be5 {[%clk 0:02:31]} 14. Bf3 {[%clk 0:01:30]}  O-O {[%clk 0:02:24]} 15. Qd2 {[%clk 0:01:03]}  Rac8 {[%clk 0:02:22]} 16. Rae1 {[%clk 0:01:01]}  d6 {[%clk 0:02:17]} 17. Bxe5 {[%clk 0:01:01]}  dxe5 {[%clk 0:02:17]} 18. Re2 {[%clk 0:01:01]}  Rfd8 {[%clk 0:02:09]} 19. Qe1 {[%clk 0:00:54]}  a5 {[%clk 0:02:05]} 20. Kh1 {[%clk 0:00:46]}  b4 {[%clk 0:02:03]} 21. Nb5 {[%clk 0:00:43]}  Qc5 {[%clk 0:02:01]} 22. a4 {[%clk 0:00:42]}  Ba6 {[%clk 0:01:58]} 23. g4 {[%clk 0:00:31]}  Bxb5 {[%clk 0:01:50]} 24. axb5 {[%clk 0:00:32]}  Qxb5 {[%clk 0:01:51]} 25. g5 {[%clk 0:00:27]}  Ne8 {[%clk 0:01:49]} 26. Bg4 {[%clk 0:00:25]}  Nd6 {[%clk 0:01:47]} 27. Ref2 {[%clk 0:00:20]}  Qc4 {[%clk 0:01:38]} 28. b3 {[%clk 0:00:19]}  Qxe4+ {[%clk 0:01:36]} 29. Bf3 {[%clk 0:00:18]}  Qxe1 {[%clk 0:01:35]} 30. Rxe1 {[%clk 0:00:19]}  Rc5 {[%clk 0:01:31]} 31. Rfe2 {[%clk 0:00:18]}  e4 {[%clk 0:01:25]} 32. Bxe4 {[%clk 0:00:18]}  Nxe4 {[%clk 0:01:25]} 33. Rxe4 {[%clk 0:00:19]}  Rxc2 {[%clk 0:01:24]} 34. Re5 {[%clk 0:00:19]}  g6 {[%clk 0:01:05]} 35. Rxa5 {[%clk 0:00:18]}  Rd3 {[%clk 0:01:06]} 36. Ra8+ {[%clk 0:00:13]}  Kg7 {[%clk 0:01:05]} 37. Ra7 {[%clk 0:00:13]}  Rxh3+ {[%clk 0:01:05]} 38. Kg1 {[%clk 0:00:14]}  Rg3+ {[%clk 0:01:06]} 39. Kf1 {[%clk 0:00:13]}  Rxg5 {[%clk 0:01:00]} 40. Rxe6 {[%clk 0:00:13]}  Rf5+ {[%clk 0:01:00]} 41. Kg1 {[%clk 0:00:14]}  h5 {[%clk 0:01:00]} 42. Rb6 {[%clk 0:00:12]}  Rf4 {[%clk 0:00:59]} 43. Rbb7 {[%clk 0:00:12]}  h4 {[%clk 0:00:59]} 44. Rb8 {[%clk 0:00:11]}  h3 {[%clk 0:00:58]} 45. Raa8 {[%clk 0:00:12]}  Rg2+ {[%clk 0:00:58]} 0-1


[Site "https://www.chess.com"]

[Event "Titled Tuesday Blitz April 4 Late 2023"]
[White "Perez Rodriguez, Jennifer"]
[Black "Zampronha, Wladimir Camilo"]
[WhiteFideId "3507831"]
[BlackFideId "2103087"]
[WhiteElo "2116"]
[BlackElo "2176"]
[Result "1-0"]
[Round "04"]
[TimeControl "180+2"]
[Date "2023.04.04"]
[WhiteClock "0:00:09"]
[BlackClock "0:00:17"]

1. e4 {[%clk 0:03:00]}  c5 {[%clk 0:02:58]} 2. c3 {[%clk 0:03:00]}  Nf6 {[%clk 0:02:57]} 3. e5 {[%clk 0:02:59]}  Nd5 {[%clk 0:02:58]} 4. Nf3 {[%clk 0:03:00]}  e6 {[%clk 0:02:58]} 5. d4 {[%clk 0:02:59]}  cxd4 {[%clk 0:02:58]} 6. cxd4 {[%clk 0:03:00]}  b6 {[%clk 0:02:59]} 7. Bc4 {[%clk 0:02:56]}  Bb7 {[%clk 0:02:59]} 8. O-O {[%clk 0:02:55]}  d6 {[%clk 0:03:00]} 9. Qe2 {[%clk 0:02:55]}  Nd7 {[%clk 0:03:00]} 10. Bd2 {[%clk 0:02:54]}  Be7 {[%clk 0:03:00]} 11. Nc3 {[%clk 0:02:54]}  Nxc3 {[%clk 0:03:00]} 12. Bxc3 {[%clk 0:02:54]}  O-O {[%clk 0:03:00]} 13. Rad1 {[%clk 0:02:53]}  Rc8 {[%clk 0:03:01]} 14. Bb3 {[%clk 0:02:52]}  Qc7 {[%clk 0:02:58]} 15. d5 {[%clk 0:02:44]}  exd5 {[%clk 0:02:41]} 16. Bxd5 {[%clk 0:02:38]}  Bxd5 {[%clk 0:02:41]} 17. Rxd5 {[%clk 0:02:38]}  dxe5 {[%clk 0:02:34]} 18. Nxe5 {[%clk 0:02:31]}  Nf6 {[%clk 0:02:30]} 19. Rd3 {[%clk 0:02:25]}  Rfd8 {[%clk 0:02:29]} 20. Rfd1 {[%clk 0:02:19]}  Rxd3 {[%clk 0:02:28]} 21. Rxd3 {[%clk 0:02:17]}  Rd8 {[%clk 0:02:24]} 22. Rxd8+ {[%clk 0:02:16]}  Bxd8 {[%clk 0:02:19]} 23. h3 {[%clk 0:02:13]}  h6 {[%clk 0:02:07]} 24. Qf3 {[%clk 0:02:09]}  Qd6 {[%clk 0:01:39]} 25. Qb7 {[%clk 0:01:58]}  Qe7 {[%clk 0:01:31]} 26. Qxe7 {[%clk 0:01:53]}  Bxe7 {[%clk 0:01:31]} 27. Nc6 {[%clk 0:01:54]}  Bc5 {[%clk 0:01:31]} 28. Nxa7 {[%clk 0:01:53]}  Ne4 {[%clk 0:01:31]} 29. Be1 {[%clk 0:01:54]}  Bd4 {[%clk 0:01:31]} 30. b3 {[%clk 0:01:52]}  f5 {[%clk 0:01:31]} 31. Nc6 {[%clk 0:01:47]}  Bf6 {[%clk 0:01:27]} 32. b4 {[%clk 0:01:43]}  Kf7 {[%clk 0:01:26]} 33. a4 {[%clk 0:01:43]}  Ke6 {[%clk 0:01:25]} 34. a5 {[%clk 0:01:43]}  bxa5 {[%clk 0:01:25]} 35. bxa5 {[%clk 0:01:44]}  Kd7 {[%clk 0:01:26]} 36. Nb4 {[%clk 0:01:40]}  Bd4 {[%clk 0:01:19]} 37. Kf1 {[%clk 0:01:35]}  Kd6 {[%clk 0:01:17]} 38. a6 {[%clk 0:01:32]}  Ba7 {[%clk 0:01:17]} 39. Ke2 {[%clk 0:01:30]}  g5 {[%clk 0:01:16]} 40. f3 {[%clk 0:01:29]}  Nc5 {[%clk 0:01:16]} 41. Bf2 {[%clk 0:01:17]}  Bb6 {[%clk 0:01:05]} 42. Nd3 {[%clk 0:01:08]}  Nxd3 {[%clk 0:00:56]} 43. Bxb6 {[%clk 0:01:07]}  Nf4+ {[%clk 0:00:54]} 44. Kf2 {[%clk 0:00:58]}  Kc6 {[%clk 0:00:54]} 45. a7 {[%clk 0:00:57]}  Kb7 {[%clk 0:00:54]} 46. Bd4 {[%clk 0:00:56]}  Ne6 {[%clk 0:00:52]} 47. Ke3 {[%clk 0:00:51]}  Nf4 {[%clk 0:00:50]} 48. g4 {[%clk 0:00:36]}  fxg4 {[%clk 0:00:42]} 49. hxg4 {[%clk 0:00:37]}  h5 {[%clk 0:00:41]} 50. gxh5 {[%clk 0:00:36]}  Nxh5 {[%clk 0:00:41]} 51. Ke4 {[%clk 0:00:35]}  Nf4 {[%clk 0:00:38]} 52. Kf5 {[%clk 0:00:34]}  Nh3 {[%clk 0:00:35]} 53. Kg4 {[%clk 0:00:32]}  Nf4 {[%clk 0:00:36]} 54. Be3 {[%clk 0:00:26]}  Nd3 {[%clk 0:00:18]} 55. Kxg5 {[%clk 0:00:23]}  Ne5 {[%clk 0:00:18]} 56. f4 {[%clk 0:00:22]}  Nf3+ {[%clk 0:00:18]} 57. Kg4 {[%clk 0:00:21]}  Ne1 {[%clk 0:00:16]} 58. f5 {[%clk 0:00:20]}  Nd3 {[%clk 0:00:17]} 59. Bd4 {[%clk 0:00:19]}  Nb4 {[%clk 0:00:16]} 60. f6 {[%clk 0:00:17]}  Nc6 {[%clk 0:00:16]} 61. f7 {[%clk 0:00:16]}  Nxd4 {[%clk 0:00:16]} 62. f8=Q {[%clk 0:00:16]}  Nc6 {[%clk 0:00:17]} 63. Qc5 {[%clk 0:00:14]}  Nxa7 {[%clk 0:00:15]} 64. Kf5 {[%clk 0:00:13]}  Nc6 {[%clk 0:00:16]} 65. Ke6 {[%clk 0:00:12]}  Kc7 {[%clk 0:00:17]} 66. Kd5 {[%clk 0:00:09]}  Kb7 {[%clk 0:00:17]} 67. Qxc6+ {[%clk 0:00:09]}  Kb8 {[%clk 0:00:17]} 68. Qd7 {[%clk 0:00:09]} 1-0


[Site "https://www.chess.com"]

[Event "Titled Tuesday Blitz April 4 Late 2023"]
[White "Vivas Zamora, Fabian Ernesto"]
[Black "Osmonbekov, Talaibek"]
[WhiteFideId "3902480"]
[BlackFideId "2017253"]
[WhiteElo "2262"]
[BlackElo "2135"]
[Result "0-1"]
[Round "04"]
[TimeControl "180+2"]
[Date "2023.04.04"]
[WhiteClock "0:00:02"]
[BlackClock "0:00:10"]

1. e4 {[%clk 0:03:00]}  c5 {[%clk 0:02:57]} 2. Nf3 {[%clk 0:02:59]}  d6 {[%clk 0:02:58]} 3. d4 {[%clk 0:03:00]}  cxd4 {[%clk 0:02:59]} 4. Nxd4 {[%clk 0:03:01]}  Nf6 {[%clk 0:02:59]} 5. Nc3 {[%clk 0:03:01]}  g6 {[%clk 0:03:00]} 6. Be3 {[%clk 0:03:01]}  Bg7 {[%clk 0:03:00]} 7. f3 {[%clk 0:03:01]}  O-O {[%clk 0:03:00]} 8. Qd2 {[%clk 0:03:02]}  Nc6 {[%clk 0:03:00]} 9. O-O-O {[%clk 0:03:01]}  d5 {[%clk 0:03:00]} 10. Nxc6 {[%clk 0:03:02]}  bxc6 {[%clk 0:02:59]} 11. Bc4 {[%clk 0:03:02]}  e6 {[%clk 0:02:41]} 12. Bb3 {[%clk 0:03:02]}  Rb8 {[%clk 0:02:25]} 13. h4 {[%clk 0:02:58]}  Qc7 {[%clk 0:02:09]} 14. Bf4 {[%clk 0:02:43]}  e5 {[%clk 0:02:06]} 15. Bh6 {[%clk 0:02:41]}  d4 {[%clk 0:01:55]} 16. Na4 {[%clk 0:02:30]}  Nh5 {[%clk 0:01:44]} 17. Bxg7 {[%clk 0:02:23]}  Kxg7 {[%clk 0:01:45]} 18. g4 {[%clk 0:01:54]}  Nf4 {[%clk 0:01:44]} 19. h5 {[%clk 0:01:54]}  g5 {[%clk 0:01:33]} 20. h6+ {[%clk 0:01:52]}  Kh8 {[%clk 0:01:33]} 21. Nc5 {[%clk 0:01:31]}  Rb5 {[%clk 0:01:13]} 22. Nd3 {[%clk 0:01:22]}  c5 {[%clk 0:00:58]} 23. Nxf4 {[%clk 0:01:17]}  gxf4 {[%clk 0:00:55]} 24. Bc4 {[%clk 0:01:14]}  Rb4 {[%clk 0:00:53]} 25. Bd5 {[%clk 0:01:00]}  Be6 {[%clk 0:00:51]} 26. c3 {[%clk 0:01:00]}  Ra4 {[%clk 0:00:45]} 27. b3 {[%clk 0:00:53]}  Ra3 {[%clk 0:00:40]} 28. cxd4 {[%clk 0:00:34]}  Bxd5 {[%clk 0:00:27]} 29. exd5 {[%clk 0:00:26]}  cxd4+ {[%clk 0:00:25]} 30. Kb2 {[%clk 0:00:20]}  Qd6 {[%clk 0:00:22]} 31. Rc1 {[%clk 0:00:17]}  Ra6 {[%clk 0:00:20]} 32. Rh5 {[%clk 0:00:14]}  Qxd5 {[%clk 0:00:19]} 33. Qxf4 {[%clk 0:00:14]}  f6 {[%clk 0:00:14]} 34. Qd2 {[%clk 0:00:03]}  Rb8 {[%clk 0:00:14]} 35. Qc2 {[%clk 0:00:02]}  Qa5 {[%clk 0:00:13]} 36. Qc8+ {[%clk 0:00:02]}  Qd8 {[%clk 0:00:11]} 37. Qxd8+ {[%clk 0:00:03]}  Rxd8 {[%clk 0:00:12]} 38. Rf5 {[%clk 0:00:03]}  Kg8 {[%clk 0:00:11]} 39. Rc7 {[%clk 0:00:03]}  d3 {[%clk 0:00:10]} 40. Kc1 {[%clk 0:00:03]}  d2+ {[%clk 0:00:10]} 41. Kd1 {[%clk 0:00:03]}  Rxa2 {[%clk 0:00:11]} 42. Rxf6 {[%clk 0:00:01]}  Ra1+ {[%clk 0:00:11]} 43. Ke2 {[%clk 0:00:02]}  d1=Q+ {[%clk 0:00:11]} 44. Kf2 {[%clk 0:00:03]}  Qd2+ {[%clk 0:00:11]} 45. Kg3 {[%clk 0:00:03]}  Rg1+ {[%clk 0:00:10]} 46. Kh4 {[%clk 0:00:03]}  Qh2+ {[%clk 0:00:10]} 47. Kg5 {[%clk 0:00:03]}  e4 {[%clk 0:00:10]} 48. Rg7+ {[%clk 0:00:02]}  Kh8 {[%clk 0:00:10]} 0-1


[Site "https://www.chess.com"]

[Event "Titled Tuesday Blitz April 4 Late 2023"]
[White "ritanovikova"]
[Black "Pein, Jonathan"]
[BlackFideId "417092"]
[WhiteElo "2211"]
[BlackElo "2151"]
[Result "0-1"]
[Round "04"]
[TimeControl "180+2"]
[Date "2023.04.04"]
[WhiteClock "0:00:06"]
[BlackClock "0:01:38"]

1. e4 {[%clk 0:01:31]}  e5 {[%clk 0:02:57]} 2. Nf3 {[%clk 0:01:30]}  d6 {[%clk 0:02:58]} 3. d4 {[%clk 0:01:30]}  exd4 {[%clk 0:02:59]} 4. Nxd4 {[%clk 0:01:31]}  Nf6 {[%clk 0:02:59]} 5. Nc3 {[%clk 0:01:30]}  g6 {[%clk 0:03:00]} 6. Bd3 {[%clk 0:01:29]}  Bg7 {[%clk 0:03:01]} 7. O-O {[%clk 0:01:29]}  O-O {[%clk 0:03:01]} 8. h3 {[%clk 0:01:29]}  Re8 {[%clk 0:03:02]} 9. Bg5 {[%clk 0:01:29]}  h6 {[%clk 0:03:01]} 10. Bh4 {[%clk 0:01:28]}  Nbd7 {[%clk 0:03:01]} 11. Qd2 {[%clk 0:01:27]}  Nxe4 {[%clk 0:02:54]} 12. Bxe4 {[%clk 0:00:19]}  Qxh4 {[%clk 0:02:52]} 13. g3 {[%clk 0:00:20]}  Qxh3 {[%clk 0:02:48]} 14. Bg2 {[%clk 0:00:20]}  Qh5 {[%clk 0:02:35]} 15. Ndb5 {[%clk 0:00:19]}  Ne5 {[%clk 0:01:56]} 16. Nxc7 {[%clk 0:00:17]}  Bh3 {[%clk 0:01:56]} 17. Qf4 {[%clk 0:00:10]}  g5 {[%clk 0:01:45]} 18. Qb4 {[%clk 0:00:07]}  Nf3+ {[%clk 0:01:37]} 19. Bxf3 {[%clk 0:00:06]}  Qxf3 {[%clk 0:01:38]} 0-1


[Site "https://www.chess.com"]